bitfinex/quotes_BTCUSD_20241004
["timestamp","ask_amount","ask_price","bid_price","bid_amount"]
[1728047089463,0.8169878,61915.0,61914.0,0.001638]
[1728047089689,1.07367903,61915.0,61914.0,0.001638]
[1728047089920,1.08767903,61915.0,61914.0,0.001638]
[1728047090153,0.95970257,61915.0,61914.0,0.001638]
[1728047090405,0.92270257,61915.0,61914.0,0.001638]
[1728047090630,0.95970257,61915.0,61914.0,0.001638]
[1728047091128,0.89323398,61915.0,61914.0,0.001638]
[1728047091378,0.9317301,61915.0,61914.0,0.001638]
[1728047091605,0.9457301,61915.0,61914.0,0.001638]
[1728047091825,0.163516,61913.0,61905.0,0.00164]
[1728047092060,0.52838554,61913.0,61905.0,0.00164]
[1728047092777,0.770362,61913.0,61905.0,0.00164]
[1728047093052,0.793362,61913.0,61905.0,0.00164]
[1728047093283,0.793362,61913.0,61900.0,0.00164]
[1728047093284,0.163548,61901.0,61900.0,0.00164]
[1728047093539,0.44191856,61893.0,61890.0,0.00164]
[1728047093779,0.64560139,61893.0,61890.0,0.00164]
[1728047094303,0.60710527,61893.0,61890.0,0.00164]
[1728047094555,0.64558161,61893.0,61890.0,0.00164]
[1728047095002,0.62190386,61893.0,61890.0,0.00164]
[1728047095234,0.79243709,61893.0,61890.0,0.00164]
[1728047095467,0.87943932,61893.0,61890.0,0.00164]
[1728047095959,0.87943932,61893.0,61876.0,0.00174]
[1728047095960,0.163597,61882.0,61876.0,0.00174]
[1728047096196,0.60713327,61882.0,61876.0,0.00174]
[1728047096480,0.7455979,61882.0,61876.0,0.00174]
[1728047096751,0.90985398,61882.0,61876.0,0.00174]
[1728047096993,0.52750442,61882.0,61876.0,0.00174]
[1728047097270,0.78250821,61882.0,61876.0,0.00174]
[1728047097763,0.74404358,61882.0,61876.0,0.00174]
[1728047097989,0.7825286,61882.0,61876.0,0.00174]
[1728047098451,0.002,61881.0,61854.0,0.323339]
[1728047098724,0.002,61881.0,61856.0,0.324968]
[1728047098725,0.28034956,61865.0,61856.0,0.324968]
[1728047098961,0.16318671,61871.0,61856.0,0.324968]
[1728047098962,0.01480193,61864.0,61862.0,0.323299]
[1728047099222,0.16318671,61871.0,61864.0,0.0762]
[1728047099441,0.24197646,61865.0,61864.0,0.0762]
[1728047099669,0.0147512,61865.0,61864.0,0.237844]
[1728047099885,0.0147512,61865.0,61864.0,0.24171089]
[1728047100130,0.0417512,61865.0,61864.0,0.24171089]
[1728047100368,0.03934616,61865.0,61864.0,0.24171089]
[1728047100637,0.05347842,61865.0,61864.0,0.24171089]
[1728047100870,0.04934616,61865.0,61864.0,0.24171089]
[1728047101103,0.02064214,61865.0,61864.0,0.34171089]
[1728047101329,0.24197646,61889.0,61879.0,0.242905]
[1728047101330,0.24197646,61880.0,61879.0,0.242905]
[1728047101580,0.25800909,61880.0,61879.0,0.242905]
[1728047101783,0.24197646,61880.0,61879.0,0.08508852]
[1728047102004,0.40357946,61880.0,61879.0,0.08508852]
[1728047102234,0.46009631,61880.0,61879.0,0.08508852]
[1728047102497,0.161608,61879.0,61875.0,0.161615]
[1728047102718,0.161608,61879.0,61874.0,0.1]
[1728047102719,0.01471059,61880.0,61879.0,0.161605]
[1728047102942,0.01471059,61880.0,61876.0,0.646448]
[1728047102943,0.161583,61888.0,61883.0,0.161594]
[1728047103164,0.56513246,61890.0,61883.0,0.32319]
[1728047103165,0.02358658,61885.0,61883.0,0.32319]
[1728047103411,0.01474161,61884.0,61883.0,0.32319]
[1728047103624,0.16318671,61889.0,61888.0,0.161582]
[1728047103856,0.24197646,61897.0,61896.0,0.161561]
[1728047104096,0.24197646,61905.0,61894.0,0.28034956]
[1728047104374,0.24197646,61905.0,61904.0,0.16154]
[1728047104617,0.24197646,61905.0,61904.0,0.24324]
[1728047104840,0.24197646,61905.0,61904.0,0.25215952]
[1728047105068,0.24197646,61913.0,61904.0,0.09061952]
[1728047105312,0.24197646,61913.0,61912.0,0.161519]
[1728047105581,0.25673973,61913.0,61912.0,0.161519]
[1728047105808,0.25673973,61913.0,61912.0,0.17035092]
[1728047105809,0.01476327,61913.0,61912.0,0.17035092]
[1728047106519,0.007,61913.0,61912.0,0.17135092]
[1728047107005,0.017,61913.0,61912.0,0.17235092]
[1728047107224,0.007,61913.0,61912.0,0.17522158]
[1728047107696,0.007,61913.0,61912.0,0.27522158]
[1728047108399,0.24197646,61921.0,61920.0,0.161498]
[1728047108625,0.25675255,61921.0,61920.0,0.161498]
[1728047108880,0.25675255,61921.0,61920.0,0.1740784]
[1728047109117,0.01477609,61921.0,61920.0,0.2522784]
[1728047109385,0.00164,61923.0,61920.0,0.0907804]
[1728047109628,0.01477465,61921.0,61920.0,0.2522764]
[1728047109874,0.01477465,61921.0,61920.0,0.0907804]
[1728047110090,0.02777465,61921.0,61920.0,0.0917804]
[1728047110332,0.02777465,61921.0,61920.0,0.2532784]
[1728047110798,0.03877465,61921.0,61920.0,0.2542784]
[1728047111796,0.02577465,61921.0,61920.0,0.2532784]
[1728047112051,0.03877465,61921.0,61920.0,0.2542784]
[1728047112557,0.02777465,61921.0,61920.0,0.2532784]
[1728047112766,0.16482671,61923.0,61922.0,0.161493]
[1728047113221,0.16482671,61923.0,61922.0,0.00381849]
[1728047113445,0.28497476,61923.0,61922.0,0.00381849]
[1728047113674,0.17961984,61923.0,61920.0,0.24844748]
[1728047113903,0.17282671,61923.0,61922.0,0.00481849]
[1728047114134,0.34910473,61923.0,61922.0,0.001]
[1728047114375,0.34910473,61923.0,61922.0,0.00481849]
[1728047114616,0.49655372,61923.0,61922.0,0.001]
[1728047114835,0.33506372,61923.0,61922.0,0.00481849]
[1728047115064,0.33506372,61923.0,61922.0,0.162493]
[1728047115065,0.04809429,61923.0,61922.0,0.162493]
[1728047115314,0.04809429,61923.0,61922.0,0.17119845]
[1728047115533,0.03742802,61923.0,61922.0,0.17219845]
[1728047115763,0.03742802,61923.0,61922.0,0.17119845]
[1728047115764,0.03996246,61923.0,61922.0,0.17119845]
[1728047115977,0.02696246,61923.0,61922.0,0.17019845]
[1728047116229,0.03796246,61923.0,61922.0,0.17019845]
[1728047116479,0.03896246,61923.0,61922.0,0.00970545]
[1728047116706,0.25123752,61923.0,61922.0,0.01452394]
[1728047116983,0.25123752,61923.0,61922.0,0.17601694]
[1728047117206,0.25123752,61923.0,61922.0,0.01452394]
[1728047117456,0.41272752,61923.0,61922.0,0.01452394]
[1728047117939,0.43839876,61923.0,61922.0,0.002]
[1728047118178,0.43639876,61923.0,61922.0,0.002]
[1728047118396,0.59874994,61923.0,61922.0,0.002]
[1728047118871,0.60074994,61923.0,61922.0,0.002]
[1728047119736,0.61677694,61923.0,61922.0,0.002]
[1728047119771,0.60477694,61923.0,61922.0,0.001]
[1728047120012,0.44628694,61923.0,61922.0,0.001]
[1728047120174,0.45842576,61923.0,61922.0,0.002]
[1728047121186,0.44542576,61923.0,61922.0,0.001]
[1728047121620,0.42939876,61923.0,61922.0,0.001]
[1728047121838,0.42939876,61923.0,61904.0,0.00082]
[1728047121839,0.161537,61905.0,61904.0,0.00082]
[1728047122057,0.34087741,61905.0,61904.0,0.00082]
[1728047122512,0.66166248,61905.0,61904.0,0.00082]
[1728047122750,0.68699526,61905.0,61904.0,0.00082]
[1728047122983,0.66166248,61905.0,61904.0,0.00082]
[1728047123187,0.67768801,61905.0,61904.0,0.00082]
[1728047123450,0.67566248,61905.0,61904.0,0.00082]
[1728047123673,0.66166248,61905.0,61904.0,0.00082]
[1728047124111,0.67566248,61905.0,61904.0,0.00082]
[1728047124321,0.66166248,61905.0,61904.0,0.00082]
[1728047124533,0.67566248,61905.0,61904.0,0.00082]
[1728047125205,0.68966248,61905.0,61904.0,0.00082]
[1728047125672,0.67570856,61905.0,61904.0,0.00082]
[1728047126138,0.68970856,61905.0,61904.0,0.00082]
[1728047126384,1.04068502,61905.0,61904.0,0.00082]
[1728047126591,0.85690714,61905.0,61904.0,0.00082]
[1728047126846,0.60455758,61905.0,61904.0,0.00082]
[1728047127077,0.60455758,61905.0,61879.0,0.24197646]
[1728047127078,0.161603,61880.0,61879.0,0.24197646]
[1728047127553,0.3632713,61880.0,61879.0,0.24197646]
[1728047127556,0.363146,61880.0,61879.0,0.00475639]
[1728047127783,0.38848875,61880.0,61879.0,0.00475639]
[1728047128003,0.161631,61869.0,61868.0,0.0788]
[1728047128228,0.35578142,61869.0,61868.0,0.0788]
[1728047128459,0.35578142,61869.0,61865.0,0.000821]
[1728047128460,0.17798732,61869.0,61865.0,0.000821]
[1728047128707,0.16318671,61868.0,61867.0,0.161635]
[1728047128955,0.16318671,61868.0,61867.0,0.161637]
[1728047129425,0.17801006,61868.0,61867.0,0.161637]
[1728047129652,0.01482335,61868.0,61867.0,0.161637]
[1728047129882,0.02382335,61868.0,61867.0,0.161637]
[1728047130127,0.01482335,61868.0,61867.0,0.161637]
[1728047130376,0.03834635,61869.0,61866.0,0.323279]
[1728047130377,0.02534635,61869.0,61866.0,0.323279]
[1728047130588,0.02534635,61869.0,61868.0,0.161634]
[1728047131541,0.02534635,61869.0,61868.0,0.71711581]
[1728047131795,0.02534635,61869.0,61868.0,0.71388356]
[1728047133273,0.24197646,61876.0,61868.0,0.55624956]
[1728047133487,0.001,61869.0,61868.0,0.71788356]
[1728047133712,0.24197646,61883.0,61882.0,0.161597]
[1728047133940,0.25677992,61883.0,61882.0,0.161597]
[1728047134628,0.01480346,61883.0,61882.0,0.161597]
[1728047134846,0.24197646,61893.0,61892.0,0.161571]
[1728047135190,0.40516317,61893.0,61892.0,0.161571]
[1728047135443,0.20166996,61893.0,61892.0,0.161571]
[1728047135673,0.03848325,61893.0,61892.0,0.161571]
[1728047135864,0.03848325,61893.0,61892.0,0.16408179]
[1728047136116,0.01480125,61893.0,61892.0,0.16408179]
[1728047136344,0.24197646,61906.0,61892.0,0.00251079]
[1728047136573,0.24197646,61894.0,61893.0,0.161569]
[1728047136804,0.16318671,61905.0,61888.0,0.0772]
[1728047137024,0.014,61893.0,61892.0,0.001]
[1728047137253,0.19194758,61893.0,61892.0,0.162571]
[1728047137472,0.19194758,61893.0,61892.0,0.001]
[1728047137473,0.19594758,61893.0,61892.0,0.001]
[1728047137771,0.23476455,61893.0,61892.0,0.162571]
[1728047138018,0.21556979,61893.0,61892.0,0.162571]
[1728047138236,0.21556979,61893.0,61892.0,0.001]
[1728047138460,0.20156979,61893.0,61887.0,0.323167]
[1728047138681,0.20156979,61892.0,61889.0,0.161578]
[1728047138930,0.16318671,61892.0,61890.0,0.161576]
[1728047139185,0.16158,61889.0,61878.0,0.403616]
[1728047139431,0.2016333,61888.0,61886.0,0.161586]
[1728047139655,0.03844659,61887.0,61886.0,0.161586]
[1728047140339,0.2016333,61887.0,61886.0,0.161586]
[1728047140560,0.2016333,61887.0,61879.0,0.323206]
[1728047140561,0.161591,61885.0,61879.0,0.323206]
[1728047140782,0.57126828,61887.0,61879.0,0.161605]
[1728047140783,0.161596,61883.0,61879.0,0.161605]
[1728047140998,0.161596,61883.0,61878.0,0.0814]
[1728047140999,0.17797365,61882.0,61878.0,0.0814]
[1728047141219,0.01478694,61881.0,61878.0,0.243006]
[1728047141439,0.01478694,61881.0,61878.0,0.0814]
[1728047141440,0.16318671,61880.0,61878.0,0.0814]
[1728047141659,0.16318671,61880.0,61878.0,0.0804]
[1728047141915,0.32478971,61880.0,61876.0,0.161613]
[1728047142164,0.17797042,61880.0,61873.0,0.1]
[1728047142392,0.01478707,61879.0,61873.0,0.1]
[1728047142609,0.01478707,61879.0,61878.0,0.161608]
[1728047143084,0.04194372,61879.0,61876.0,0.323221]
[1728047143314,0.014789,61878.0,61876.0,0.161611]
[1728047143553,0.014789,61877.0,61876.0,0.161611]
[1728047143780,0.04245992,61879.0,61877.0,0.16161]
[1728047144030,0.20163923,61878.0,61874.0,0.323233]
[1728047144256,0.16318671,61878.0,61877.0,0.16161]
[1728047144510,0.03846733,61878.0,61877.0,0.44195956]
[1728047144734,0.004,61879.0,61878.0,0.161608]
[1728047144972,0.001642,61880.0,61879.0,0.161605]
[1728047145674,0.0164426,61880.0,61879.0,0.161605]
[1728047145888,0.001642,61880.0,61879.0,0.161605]
[1728047146337,0.0164426,61880.0,61879.0,0.261605]
[1728047146582,0.001642,61880.0,61879.0,0.261605]
[1728047147045,0.016642,61880.0,61879.0,0.262605]
[1728047147283,0.02546029,61880.0,61879.0,0.262605]
[1728047147527,0.02646029,61880.0,61879.0,0.262605]
[1728047147993,0.02546029,61880.0,61879.0,0.262605]
[1728047148210,0.01646029,61880.0,61879.0,0.261605]
[1728047148393,0.02146029,61880.0,61879.0,0.261605]
[1728047148916,0.01646029,61880.0,61879.0,0.261605]
[1728047149424,0.01746029,61880.0,61879.0,0.261605]
[1728047149666,0.04119685,61880.0,61879.0,0.261605]
[1728047150165,0.01746029,61880.0,61879.0,0.26477212]
[1728047150410,0.01746029,61880.0,61879.0,0.338805]
[1728047150928,0.002642,61880.0,61879.0,0.34128479]
[1728047151436,0.01646366,61880.0,61879.0,0.34128479]
[1728047151681,0.002642,61880.0,61879.0,0.34128479]
[1728047152149,0.001642,61880.0,61879.0,0.34128479]
[1728047152416,0.001642,61880.0,61879.0,0.34328479]
[1728047152666,0.24197646,61892.0,61891.0,0.161574]
[1728047152901,0.25677521,61892.0,61891.0,0.61982666]
[1728047153152,0.25677521,61892.0,61891.0,0.62233396]
[1728047153396,0.01479875,61892.0,61891.0,0.62233396]
[1728047153617,0.24197646,61899.0,61892.0,0.1]
[1728047153866,0.24197646,61899.0,61898.0,0.161556]
[1728047154128,0.28045462,61899.0,61898.0,0.161556]
[1728047154440,0.30850008,61899.0,61898.0,0.00198452]
[1728047154656,0.03847625,61899.0,61898.0,0.16407888]
[1728047154889,0.03847625,61899.0,61898.0,0.161556]
[1728047155129,0.05460228,61899.0,61898.0,0.16354]
[1728047155375,0.03947625,61899.0,61898.0,0.001984]
[1728047155606,0.03947625,61899.0,61898.0,0.16354]
[1728047156072,0.36421596,61899.0,61898.0,0.001984]
[1728047156320,0.36421596,61899.0,61898.0,0.002984]
[1728047156321,0.37621596,61899.0,61898.0,0.002984]
[1728047156538,0.37521596,61899.0,61898.0,0.001]
[1728047156791,0.53770002,61899.0,61898.0,0.001]
[1728047157004,0.54970002,61899.0,61898.0,0.001]
[1728047157248,0.53770002,61899.0,61898.0,0.001]
[1728047157502,0.21530496,61899.0,61898.0,0.001]
[1728047157734,0.35238171,61899.0,61898.0,0.001]
[1728047157975,0.35238171,61899.0,61898.0,0.002984]
[1728047158207,0.21728917,61899.0,61888.0,0.161581]
[1728047158451,0.323138,61893.0,61886.0,0.32317]
[1728047158668,0.161584,61887.0,61884.0,0.161591]
[1728047158899,0.21777556,61886.0,61882.0,0.401993]
[1728047159137,0.20005146,61885.0,61881.0,0.161599]
[1728047159354,0.16318671,61886.0,61880.0,0.1]
[1728047159355,0.03846046,61884.0,61880.0,0.1]
[1728047159573,0.02366798,61885.0,61884.0,0.161592]
[1728047159819,0.03848246,61885.0,61881.0,0.323198]
[1728047160060,0.1863151,61886.0,61884.0,0.161592]
[1728047160292,0.1863151,61886.0,61885.0,0.16159]
[1728047160517,0.20866642,61886.0,61884.0,0.161592]
[1728047160781,0.22480799,61886.0,61885.0,0.16159]
[1728047161013,0.18632828,61886.0,61885.0,0.16159]
[1728047161255,0.0454508,61886.0,61885.0,0.16159]
[1728047161501,0.0384508,61886.0,61885.0,0.16159]
[1728047161977,0.001642,61899.0,61890.0,0.0821]
[1728047162250,0.24197646,61895.0,61890.0,0.0821]
[1728047162522,0.01614103,61895.0,61894.0,0.261566]
[1728047162763,0.001642,61899.0,61894.0,0.261566]
[1728047162764,0.01614103,61897.0,61896.0,0.161561]
[1728047163003,0.001642,61899.0,61898.0,0.261556]
[1728047163275,0.015642,61899.0,61898.0,0.261556]
[1728047163510,0.05410563,61899.0,61898.0,0.26478674]
[1728047163761,0.05410563,61899.0,61898.0,0.161556]
[1728047164029,0.0444357,61899.0,61895.0,0.161563]
[1728047164290,0.0444357,61899.0,61890.0,0.40625]
[1728047164291,0.16318671,61898.0,61890.0,0.40625]
[1728047164525,0.07633043,61897.0,61892.0,0.32314]
[1728047164747,0.21778456,61896.0,61895.0,0.161563]
[1728047164996,0.03846363,61896.0,61895.0,0.161563]
[1728047165239,0.03846363,61896.0,61895.0,0.340263]
[1728047165488,0.0147937,61896.0,61895.0,0.340263]
[1728047165982,0.0147937,61896.0,61895.0,0.34277831]
[1728047166202,0.01,61897.0,61895.0,0.18517469]
[1728047166442,0.03842481,61896.0,61895.0,0.34673769]
[1728047166736,0.04442481,61896.0,61895.0,0.34773769]
[1728047167185,0.013,61896.0,61895.0,0.34773769]
[1728047167428,0.02777676,61896.0,61895.0,0.34773769]
[1728047167649,0.013,61896.0,61895.0,0.34773769]
[1728047167875,0.006,61896.0,61895.0,0.34773769]
[1728047168146,0.001642,61899.0,61898.0,0.161556]
[1728047168363,0.04000903,61899.0,61898.0,0.161556]
[1728047168601,0.04000903,61899.0,61898.0,0.16549972]
[1728047169663,0.16482871,61899.0,61898.0,0.00394372]
[1728047169871,0.32638171,61899.0,61898.0,0.00394372]
[1728047170120,0.32638171,61899.0,61895.0,0.00251531]
[1728047170121,0.164561,61896.0,61895.0,0.00251531]
[1728047170393,0.16618671,61896.0,61887.0,0.323168]
[1728047170627,0.16618671,61896.0,61880.0,0.24197646]
[1728047170628,0.16318671,61895.0,61881.0,0.323197]
[1728047170876,0.16318671,61895.0,61888.0,0.00423846]
[1728047170877,0.161575,61891.0,61888.0,0.00423846]
[1728047171109,0.161575,61891.0,61882.0,0.161596]
[1728047171110,0.323171,61887.0,61882.0,0.161596]
[1728047171311,0.323171,61887.0,61880.0,0.000821]
[1728047171312,0.20159493,61886.0,61883.0,0.161594]
[1728047171524,0.03840822,61885.0,61881.0,0.323196]
[1728047171759,0.01612547,61889.0,61886.0,0.161585]
[1728047172008,0.01612547,61889.0,61880.0,0.000821]
[1728047172009,0.03836826,61888.0,61880.0,0.28117366]
[1728047172261,0.25810193,61890.0,61880.0,0.000821]
[1728047172262,0.03836826,61887.0,61880.0,0.000821]
[1728047172504,0.19995326,61887.0,61882.0,0.323195]
[1728047172766,0.24197646,61890.0,61888.0,0.001]
[1728047172767,0.484739,61889.0,61888.0,0.001]
[1728047173177,0.01474921,61886.0,61885.0,0.16159]
[1728047173454,0.17793592,61886.0,61885.0,0.16159]
[1728047173725,0.41123722,61886.0,61885.0,0.0040116]
[1728047173976,0.70633957,61886.0,61885.0,0.0040116]
[1728047174190,0.70633957,61886.0,61880.0,0.000821]
[1728047174191,0.1616,61881.0,61880.0,0.000821]
[1728047174497,0.32637342,61881.0,61880.0,0.000821]
[1728047174739,0.02359951,61881.0,61880.0,0.001821]
[1728047174974,0.01479078,61881.0,61880.0,0.16746171]
[1728047175195,0.01479078,61881.0,61880.0,0.162424]
[1728047175435,0.03839029,61881.0,61880.0,0.162424]
[1728047175686,0.03839029,61881.0,61880.0,0.163424]
[1728047175687,0.06439029,61881.0,61880.0,0.163424]
[1728047176407,0.026,61881.0,61880.0,0.163424]
[1728047176626,0.0644325,61881.0,61880.0,0.16746171]
[1728047176879,0.0384325,61881.0,61880.0,0.52561437]
[1728047177145,0.0424325,61881.0,61880.0,0.62561437]
[1728047177422,0.01878173,61881.0,61880.0,0.62561437]
[1728047177861,0.01478173,61881.0,61880.0,0.62561437]
[1728047178081,0.02078173,61881.0,61880.0,0.62561437]
[1728047178510,0.24197646,61892.0,61891.0,0.161574]
[1728047178727,0.44354136,61892.0,61891.0,0.161574]
[1728047178984,0.28035465,61892.0,61891.0,0.161574]
[1728047179213,0.28035465,61892.0,61891.0,0.16555427]
[1728047179446,0.40516317,61892.0,61891.0,0.00398027]
[1728047179664,0.64439963,61892.0,61891.0,0.00398027]
[1728047179886,0.64439963,61892.0,61880.0,0.000821]
[1728047179887,0.1616,61881.0,61880.0,0.000821]
[1728047180133,0.16318671,61881.0,61880.0,0.000821]
[1728047180604,0.16418671,61881.0,61880.0,0.02160466]
[1728047180832,0.19507891,61881.0,61880.0,0.02160466]
[1728047181050,0.21769124,61881.0,61880.0,0.18320766]
[1728047181300,0.20155675,61881.0,61880.0,0.18320766]
[1728047181523,0.04837004,61881.0,61880.0,0.18320766]
[1728047181738,0.03937004,61881.0,61880.0,0.18320766]
[1728047181994,0.03837004,61881.0,61880.0,0.18320766]
[1728047182232,0.05401204,61881.0,61880.0,0.26300766]
[1728047182688,0.04001204,61881.0,61880.0,0.26300766]
[1728047182902,0.0398853,61881.0,61880.0,0.26300766]
[1728047183146,0.0628853,61881.0,61880.0,0.18320766]
[1728047183361,0.0508853,61881.0,61880.0,0.18320766]
[1728047183616,0.21407201,61881.0,61880.0,0.02160466]
[1728047183853,0.21507201,61881.0,61880.0,0.02160466]
[1728047184068,0.21407201,61881.0,61880.0,0.02160466]
[1728047184300,0.0508853,61881.0,61880.0,0.18320766]
[1728047184553,0.0498853,61881.0,61880.0,0.18320766]
[1728047184829,0.0428853,61881.0,61880.0,0.46356032]
[1728047185071,0.0538853,61881.0,61880.0,0.18320766]
[1728047185317,0.0508853,61881.0,61880.0,0.18320766]
[1728047185531,0.0648853,61881.0,61880.0,0.18320766]
[1728047186016,0.0648853,61881.0,61880.0,0.02160466]
[1728047186017,0.0508853,61881.0,61880.0,0.02160466]
[1728047186511,0.05193941,61881.0,61880.0,0.02160466]
[1728047186740,0.06093941,61881.0,61880.0,0.18320766]
[1728047186960,0.06093941,61881.0,61880.0,0.02160466]
[1728047187177,0.22253941,61881.0,61880.0,0.02160466]
[1728047187399,0.44994064,61881.0,61880.0,0.02160466]
[1728047187886,0.37372612,61881.0,61880.0,0.02160466]
[1728047188127,0.38772612,61881.0,61880.0,0.02160466]
[1728047188369,0.22612612,61881.0,61880.0,0.02160466]
[1728047188871,0.04893941,61881.0,61880.0,0.18320766]
[1728047189119,0.06093941,61881.0,61880.0,0.18320766]
[1728047189635,0.1138414,61881.0,61880.0,0.18320766]
[1728047190170,0.06093941,61881.0,61880.0,0.02160466]
[1728047190433,0.06093448,61881.0,61880.0,0.18320766]
[1728047190926,0.06093448,61881.0,61880.0,0.02160466]
[1728047191165,0.06093448,61881.0,61880.0,0.18320766]
[1728047192772,0.22412119,61881.0,61880.0,0.02160466]
[1728047193013,0.4278091,61881.0,61880.0,0.02160466]
[1728047193267,0.46610788,61881.0,61880.0,0.02160466]
[1728047193527,0.51449553,61881.0,61880.0,0.000821]
[1728047193819,0.71007701,61881.0,61880.0,0.000821]
[1728047194014,0.58910788,61881.0,61880.0,0.000821]
[1728047194265,0.46610788,61881.0,61880.0,0.000821]
[1728047194506,0.36472749,61881.0,61880.0,0.000821]
[1728047194752,0.36472749,61881.0,61880.0,0.030821]
[1728047194753,0.37872749,61881.0,61880.0,0.030821]
[1728047194972,0.39272749,61881.0,61880.0,0.030821]
[1728047195213,0.5559142,61881.0,61880.0,0.030821]
[1728047195426,0.5419142,61881.0,61880.0,0.030821]
[1728047195659,0.5559142,61881.0,61880.0,0.030821]
[1728047195866,0.65263985,61881.0,61880.0,0.030821]
[1728047196085,0.23112749,61881.0,61880.0,0.030821]
[1728047196382,0.22718662,61881.0,61880.0,0.192424]
[1728047196632,0.23116158,61881.0,61880.0,0.04757668]
[1728047196850,0.40676158,61881.0,61880.0,0.04757668]
[1728047197080,0.21716158,61881.0,61880.0,0.04757668]
[1728047197301,0.21716158,61881.0,61880.0,0.030821]
[1728047197518,0.21716158,61881.0,61880.0,0.05161177]
[1728047197519,0.23116158,61881.0,61880.0,0.05161177]
[1728047197742,0.36476158,61881.0,61880.0,0.05161177]
[1728047197969,0.38088598,61881.0,61880.0,0.05161177]
[1728047198191,0.24728598,61881.0,61880.0,0.192424]
[1728047198407,0.23328598,61881.0,61880.0,0.04757406]
[1728047198629,0.21716158,61881.0,61880.0,0.04757406]
[1728047198861,0.23116158,61881.0,61880.0,0.04757406]
[1728047199207,0.50848362,61881.0,61880.0,0.04757406]
[1728047199429,0.50848362,61881.0,61880.0,0.030821]
[1728047199628,0.48415075,61881.0,61880.0,0.04757311]
[1728047200059,0.50851677,61881.0,61880.0,0.04757311]
[1728047200273,0.52151677,61881.0,61880.0,0.04757311]
[1728047200491,0.5215168,61881.0,61880.0,0.04757311]
[1728047200699,0.5085168,61881.0,61880.0,0.04757311]
[1728047201557,0.5215168,61881.0,61880.0,0.04757311]
[1728047201769,0.58005389,61881.0,61880.0,0.030821]
[1728047201973,0.6465168,61881.0,61880.0,0.030821]
[1728047202592,0.161629,61870.0,61869.0,0.000821]
[1728047202801,0.52467904,61870.0,61869.0,0.000821]
[1728047203005,0.51049338,61870.0,61869.0,0.000821]
[1728047203212,0.54890436,61870.0,61869.0,0.000821]
[1728047203414,0.54888462,61870.0,61869.0,0.000821]
[1728047203824,0.56288462,61870.0,61869.0,0.000821]
[1728047204330,0.49036319,61870.0,61869.0,0.000821]
[1728047205150,0.75733965,61870.0,61869.0,0.000821]
[1728047205383,0.71026319,61870.0,61869.0,0.000821]
[1728047205631,0.72426319,61870.0,61869.0,0.000821]
[1728047205871,0.72426319,61870.0,61856.0,0.00164]
[1728047205872,0.46729418,61862.0,61856.0,0.00164]
[1728047206112,0.76889187,61862.0,61856.0,0.00164]
[1728047206356,0.79924535,61862.0,61856.0,0.00164]
[1728047207299,0.81324535,61862.0,61856.0,0.00164]
[1728047207536,0.93391809,61862.0,61856.0,0.00164]
[1728047207835,0.58230718,61857.0,61856.0,0.00164]
[1728047208052,0.78590487,61857.0,61856.0,0.00164]
[1728047208499,0.48626069,61857.0,61856.0,0.00164]
[1728047208719,0.55973966,61857.0,61856.0,0.00164]
[1728047208954,0.5264474,61857.0,61856.0,0.00164]
[1728047209224,0.5404474,61857.0,61856.0,0.00164]
[1728047209502,0.21559769,61857.0,61856.0,0.00164]
[1728047209693,0.17718671,61857.0,61856.0,0.00164]
[1728047209934,0.21550585,61857.0,61856.0,0.00164]
[1728047210160,0.33884971,61857.0,61856.0,0.00164]
[1728047210377,0.5022328,61857.0,61856.0,0.01853198]
[1728047210614,0.5162328,61857.0,61856.0,0.01853198]
[1728047211269,0.5022328,61857.0,61856.0,0.01853198]
[1728047211506,0.5302328,61857.0,61856.0,0.00164]
[1728047212051,0.5302328,61857.0,61856.0,0.01853198]
[1728047212052,0.3545698,61857.0,61856.0,0.01853198]
[1728047212304,0.3685698,61857.0,61856.0,0.01853198]
[1728047212742,0.5162328,61857.0,61856.0,0.01853198]
[1728047212995,0.3545698,61857.0,61856.0,0.01853198]
[1728047213225,0.19118671,61857.0,61856.0,0.18019698]
[1728047213464,0.33884971,61857.0,61856.0,0.01853198]
[1728047213718,0.37717272,61857.0,61856.0,0.01853198]
[1728047214205,0.37717272,61857.0,61856.0,0.00164]
[1728047214437,0.53768811,61857.0,61856.0,0.00164]
[1728047214684,0.53768811,61857.0,61856.0,0.01853198]
[1728047214924,0.53768811,61857.0,61856.0,0.00164]
[1728047216337,0.55168811,61857.0,61856.0,0.00164]
[1728047216548,0.5133651,61857.0,61856.0,0.00164]
[1728047216769,0.55170679,61857.0,61856.0,0.00164]
[1728047216980,0.52370679,61857.0,61856.0,0.00164]
[1728047217239,0.53978704,61857.0,61856.0,0.00164]
[1728047217465,0.55378704,61857.0,61856.0,0.00164]
[1728047217929,0.56778704,61857.0,61856.0,0.00164]
[1728047218146,0.55378704,61857.0,61856.0,0.00164]
[1728047218587,0.56778704,61857.0,61856.0,0.00164]
[1728047219071,0.56778704,61857.0,61856.0,0.01853628]
[1728047219410,0.56778704,61857.0,61856.0,0.00164]
[1728047219488,0.55170679,61857.0,61856.0,0.00164]
[1728047219775,0.5133651,61857.0,61856.0,0.00164]
[1728047220248,0.55175814,61857.0,61856.0,0.00164]
[1728047220504,0.57615203,61857.0,61856.0,0.00164]
[1728047220957,0.59015203,61857.0,61856.0,0.00164]
[1728047221444,0.57615203,61857.0,61856.0,0.00164]
[1728047222163,0.26797364,61857.0,61856.0,0.163305]
[1728047222372,0.26797364,61857.0,61856.0,0.00164]
[1728047222598,0.26797364,61857.0,61856.0,0.01853644]
[1728047222855,0.41563664,61857.0,61856.0,0.00164]
[1728047223111,0.46679585,61857.0,61856.0,0.01853644]
[1728047223354,0.46679585,61857.0,61856.0,0.00164]
[1728047223845,0.45279585,61857.0,61856.0,0.00164]
[1728047224053,0.46679585,61857.0,61856.0,0.00164]
[1728047224613,0.71804699,61857.0,61856.0,0.00164]
[1728047224876,0.73204699,61857.0,61856.0,0.00164]
[1728047225085,0.73404699,61857.0,61856.0,0.00164]
[1728047225573,1.01020648,61857.0,61856.0,0.00164]
[1728047225780,1.03464975,61857.0,61856.0,0.00164]
[1728047225995,1.04864975,61857.0,61856.0,0.00164]
[1728047226211,1.03464975,61857.0,61856.0,0.00164]
[1728047226443,1.02064975,61857.0,61856.0,0.00164]
[1728047226680,1.04364975,61857.0,61856.0,0.00164]
[1728047226933,1.04164975,61857.0,61856.0,0.00164]